bitfinex/quotes_SOLUSD_20251007
["timestamp","ask_amount","ask_price","bid_price","bid_amount"]
[1759815961156,0.69,234.74,234.69,29.98]
[1759815962061,4.26039536,234.72,234.69,29.98]
[1759815963768,16.58354773,234.72,234.67,1e-08]
[1759815963942,4.26093996,234.69,234.67,1e-08]
[1759815964344,2.35216396,234.68,234.67,1e-08]
[1759815964637,2.35216396,234.68,234.67,27.76000001]
[1759815965244,6.61328548,234.68,234.67,27.76000001]
[1759815967174,6.61328548,234.68,234.67,1e-08]
[1759815967561,6.61328548,234.68,234.67,21.14000001]
[1759815968159,4.94112152,234.68,234.67,21.14000001]
[1759815968570,6.61328548,234.68,234.67,1e-08]
[1759815968876,6.61328548,234.68,234.67,29.96000001]
[1759815969874,6.61328548,234.68,234.67,1e-08]
[1759815970073,17.48976069,234.68,234.67,1e-08]
[1759815971468,38.28976069,234.68,234.67,1e-08]
[1759815971672,10.87647521,234.67,234.62,0.2]
[1759815971867,12.54863917,234.63,234.62,0.2]
[1759815972373,13.22863917,234.63,234.62,0.2]
[1759815972965,17.49066874,234.63,234.62,0.2]
[1759815973372,4.26202957,234.63,234.62,0.2]
[1759815973579,5.93419353,234.63,234.62,0.2]
[1759815974167,6.61419353,234.63,234.62,0.2]
[1759815976060,4.26202957,234.63,234.62,0.2]
[1759815978279,4.94202957,234.63,234.62,0.2]
[1759815978464,6.61419353,234.63,234.62,0.2]
[1759815978664,5.93419353,234.63,234.62,0.2]
[1759815980682,4.26202957,234.63,234.62,0.9]
[1759815980880,4.2614847,234.66,234.62,0.9]
[1759815981058,4.2614847,234.66,234.63,0.7]
[1759815981459,4.2614847,234.66,234.64,0.7]
[1759815981666,4.2614847,234.66,234.62,0.2]
[1759815981870,5.93364866,234.66,234.62,0.2]
[1759815982161,5.93364866,234.66,234.62,0.9]
[1759815982467,16.58736041,234.66,234.62,0.2]
[1759815983185,2.35216396,234.65,234.62,0.2]
[1759815983362,4.26184793,234.64,234.62,0.2]
[1759815985075,2.35216396,234.63,234.62,0.2]
[1759815986567,4.94202957,234.63,234.62,0.2]
[1759815986764,6.61419353,234.63,234.62,0.2]
[1759815987759,5.93419353,234.63,234.62,0.2]
[1759815988374,6.61419353,234.63,234.62,0.2]
[1759815989874,5.93419353,234.63,234.62,0.2]
[1759815990890,6.61419353,234.63,234.62,0.2]
[1759815992594,10.65260679,234.69,234.62,0.87]
[1759815992782,1.67216396,234.67,234.62,0.87]
[1759815993174,2.32216396,234.67,234.62,0.87]
[1759815993377,2.32216396,234.67,234.62,0.2]
[1759815993582,1.67216396,234.66,234.62,0.2]
[1759815993782,2.32216396,234.66,234.62,0.2]
[1759815994585,4.26166631,234.65,234.62,0.2]
[1759815995585,1.67216396,234.63,234.62,0.2]
[1759815995796,1.67216396,234.63,234.62,28.6]
[1759815996002,2.32216396,234.63,234.62,28.6]
[1759815996702,6.58419353,234.63,234.62,28.6]
[1759815997001,4.91202957,234.63,234.62,28.6]
[1759815997177,4.26202957,234.63,234.62,28.6]
[1759816000516,4.26166631,234.65,234.62,29.32]
[1759816000794,4.26166631,234.65,234.63,0.72]
[1759816001012,4.26166631,234.65,234.64,0.72]
[1759816001377,4.26166631,234.65,234.62,0.2]
[1759816001378,4.93166631,234.65,234.62,0.2]
[1759816001886,1.67216396,234.63,234.62,0.2]
[1759816002476,2.34216396,234.63,234.62,0.2]
[1759816002779,17.48066874,234.63,234.62,1e-08]
[1759816005513,4.26202957,234.63,234.62,1e-08]
[1759816007010,1.67216396,234.63,234.62,1e-08]
[1759816009312,5.93419353,234.63,234.62,1e-08]
[1759816010810,6.60419353,234.63,234.62,1e-08]
[1759816011204,5.93419353,234.63,234.62,1e-08]
[1759816012621,6.60419353,234.63,234.62,1e-08]
[1759816012915,4.93202957,234.63,234.62,1e-08]
[1759816013117,27.40419353,234.63,234.62,1e-08]
[1759816013319,26.73419353,234.63,234.62,1e-08]
[1759816014310,5.93419353,234.63,234.62,1e-08]
[1759816019227,5.93419353,234.63,234.61,0.2]
[1759816019228,10.87647521,234.62,234.61,1e-08]
[1759816019399,12.54863917,234.62,234.61,1e-08]
[1759816019601,13.21863917,234.62,234.61,1e-08]
[1759816019803,13.21863917,234.62,234.58,0.2]
[1759816020020,26.18682478,234.62,234.58,0.2]
[1759816020757,1.67216396,234.59,234.58,0.2]
[1759816021125,2.34216396,234.59,234.58,0.2]
[1759816021348,6.60492025,234.59,234.58,0.2]
[1759816024420,4.93275629,234.59,234.58,0.2]
[1759816024725,6.60492025,234.59,234.58,0.2]
[1759816025140,7.54895914,234.59,234.58,0.2]
[1759816026443,15.1392315,234.59,234.58,0.2]
[1759816026619,4.26275629,234.59,234.58,0.2]
[1759816026824,4.26275629,234.59,234.58,0.88]
[1759816027744,14.91837516,234.61,234.58,0.88]
[1759816028631,14.91837516,234.61,234.58,0.2]
[1759816029048,0.7,234.6,234.58,0.2]
[1759816029238,0.7,234.59,234.58,0.2]
[1759816029548,0.7,234.6,234.58,0.2]
[1759816030928,4.26275629,234.59,234.58,0.2]
[1759816032045,7.57895914,234.59,234.58,0.2]
[1759816033750,4.96275629,234.59,234.58,0.2]
[1759816034429,7.57895914,234.59,234.58,0.2]
[1759816037958,18.45543435,234.59,234.58,0.2]
[1759816038132,18.45543435,234.59,234.58,1e-08]
[1759816041676,15.8392315,234.59,234.58,1e-08]
[1759816042173,18.45543435,234.59,234.58,1e-08]
[1759816045867,10.87647521,234.54,234.53,0.2]
[1759816046074,13.49267806,234.54,234.53,0.2]
[1759816046276,14.19267806,234.54,234.53,0.2]
[1759816047157,18.4563431,234.54,234.53,0.2]
[1759816047362,18.4563431,234.54,234.53,1e-08]
[1759816047583,15.84014025,234.54,234.53,1e-08]
[1759816048100,18.4563431,234.54,234.53,1e-08]
[1759816053703,15.14014025,234.54,234.53,1e-08]
[1759816053880,17.7563431,234.54,234.53,1e-08]
[1759816054080,15.14014025,234.54,234.53,1e-08]
[1759816054392,18.4563431,234.54,234.53,1e-08]
[1759816054895,15.84014025,234.54,234.53,1e-08]
[1759816055093,18.4563431,234.54,234.53,1e-08]
[1759816057485,15.14014025,234.54,234.53,1e-08]
[1759816057671,17.7563431,234.54,234.53,1e-08]
[1759816060284,15.14014025,234.54,234.53,1e-08]
[1759816061484,20.67129727,234.54,234.53,1e-08]
[1759816061686,33.47402851,234.54,234.53,1e-08]
[1759816062074,33.47402851,234.54,234.49,0.2]
[1759816062075,44.13319112,234.54,234.49,0.2]
[1759816062271,13.49267806,234.5,234.49,0.2]
[1759816062690,14.18267806,234.5,234.49,0.2]
[1759816063096,18.44707038,234.5,234.49,0.2]
[1759816063876,18.44707038,234.5,234.49,1e-08]
[1759816064982,15.83086753,234.5,234.49,1e-08]
[1759816065181,21.06327323,234.5,234.49,1e-08]
[1759816068100,20.15453841,234.5,234.49,1e-08]
[1759816070196,15.14086753,234.5,234.49,0.68000001]
[1759816070494,17.75707038,234.5,234.49,1e-08]
[1759816071210,20.8,234.53,234.49,1e-08]
[1759816071506,2.22495417,234.54,234.5,23.36]
[1759816071715,10.87647521,234.58,234.51,0.68]
[1759816072095,14.92051637,234.58,234.51,0.68]
[1759816072682,4.26293801,234.58,234.51,0.68]
[1759816072886,13.10072066,234.6,234.51,0.68]
[1759816072887,4.26276031,234.59,234.51,4.9441499]
[1759816073087,4.26276031,234.59,234.52,0.68]
[1759816073520,2.22424545,234.6,234.53,20.8]
[1759816073680,4.26215282,234.63,234.54,0.68]
[1759816074214,14.91663391,234.64,234.54,4.94362139]
[1759816074396,14.91663391,234.64,234.55,0.68]
[1759816074905,4.26184793,234.64,234.55,0.68]
[1759816076111,4.26184793,234.64,234.55,4.9433091]
[1759816076407,4.26184793,234.64,234.56,0.68]
[1759816078520,4.26184793,234.64,234.57,29.92]
[1759816078692,7.56805078,234.64,234.58,29.92]
[1759816079525,2.61620285,234.61,234.56,0.68]
[1759816079691,2.61620285,234.61,234.57,29.92]
[1759816079692,0.69,234.6,234.57,29.92]
[1759816079882,0.69,234.6,234.58,29.92]
[1759816080332,4.26275629,234.59,234.58,29.92]
[1759816080896,10.87647521,234.58,234.51,0.68]
[1759816081227,15.60964703,234.59,234.51,0.68]
[1759816081228,13.49267806,234.56,234.51,0.68]
[1759816081434,13.49267806,234.56,234.52,29.92]
[1759816081615,3.30620285,234.55,234.52,29.92]
[1759816081800,0.69,234.55,234.52,29.92]
[1759816082307,14.92346394,234.53,234.52,29.9]
[1759816082515,15.61346394,234.53,234.52,29.9]
[1759816082913,15.61346394,234.53,234.49,1e-08]
[1759816083143,0.69,234.52,234.5,29.9]
[1759816083302,13.49267806,234.51,234.49,1e-08]
[1759816083501,2.61620285,234.5,234.49,1e-08]
[1759816083806,3.30620285,234.5,234.49,1e-08]
[1759816084022,14.18267806,234.5,234.49,1e-08]
[1759816084428,18.44707038,234.5,234.49,1e-08]
[1759816086706,31.67647521,234.46,234.36,0.72]
[1759816086904,20.8,234.47,234.39,23.56]
[1759816086905,2.61620285,234.41,234.39,23.56]
[1759816087133,1.67694668,234.41,234.39,23.56]
[1759816088398,10.87647521,234.39,234.37,29.92]
[1759816088602,15.14286882,234.39,234.37,29.92]
[1759816090511,15.14286882,234.39,234.34,0.2]
[1759816090824,15.14286882,234.39,234.38,30.12]
[1759816091322,4.26639361,234.39,234.38,30.12]
[1759816091716,4.26618848,234.41,234.38,30.84]
[1759816091919,4.26618848,234.41,234.39,0.72]
[1759816093029,25.806305,234.43,234.38,30.12]
[1759816093931,27.48325168,234.43,234.39,29.92]
[1759816094232,28.17325168,234.43,234.39,29.92]
[1759816094529,28.17325168,234.43,234.38,0.2]
[1759816094530,10.87647521,234.39,234.38,0.2]
[1759816094827,16.8198155,234.39,234.38,1e-08]
[1759816095018,17.5098155,234.39,234.38,1e-08]
[1759816095730,51.38415109,234.39,234.38,1e-08]
[1759816096315,49.70720441,234.39,234.38,1e-08]
[1759816096528,51.38415109,234.39,234.38,1e-08]
[1759816098111,62.5181364,234.39,234.38,1e-08]
[1759816098335,49.70720441,234.39,234.38,1e-08]
[1759816098523,51.38415109,234.39,234.38,1e-08]
[1759816100427,30.58415109,234.39,234.38,1e-08]
[1759816101037,43.39563017,234.39,234.38,1e-08]
[1759816101916,41.71868349,234.39,234.38,1e-08]
[1759816102248,43.39563017,234.39,234.38,1e-08]
[1759816104343,45.62207788,234.39,234.38,1e-08]
[1759816105283,45.62207788,234.39,234.34,1e-08]
[1759816105427,12.55342189,234.35,234.34,1e-08]
[1759816105931,14.95198392,234.35,234.34,1e-08]
[1759816106544,10.87647521,234.32,234.29,1e-08]
[1759816106749,12.55342189,234.3,234.29,1e-08]
[1759816109043,16.82145432,234.3,234.29,1e-08]
[1759816114175,15.14450764,234.3,234.29,1e-08]
[1759816114393,16.82145432,234.3,234.29,1e-08]
[1759816116092,17.48145432,234.3,234.28,1e-08]
[1759816116245,32.33647521,234.29,234.28,1e-08]
[1759816116451,34.01342189,234.29,234.28,1e-08]
[1759816116962,33.35342189,234.29,234.28,1e-08]
[1759816117170,37.62163649,234.29,234.28,1e-08]
[1759816117757,38.28163649,234.29,234.28,1e-08]
[1759816118271,48.952173,234.29,234.25,0.2]
[1759816118473,1.67694668,234.26,234.25,0.2]
[1759816118678,33.35342189,234.26,234.25,1e-08]
[1759816118979,34.01342189,234.26,234.25,1e-08]
[1759816119157,38.28218309,234.26,234.25,1e-08]
[1759816119356,37.62218309,234.26,234.25,1e-08]
[1759816124960,37.62218309,234.26,234.25,0.65000001]
[1759816124961,15.14523641,234.26,234.25,0.65000001]
[1759816128060,4.2687612,234.26,234.25,0.65000001]
[1759816128778,17.51218309,234.26,234.25,1e-08]
[1759816128977,31.67647521,234.24,234.23,1e-08]
[1759816129161,33.35342189,234.24,234.23,1e-08]
[1759816129362,34.04342189,234.24,234.23,1e-08]
[1759816129982,32.36647521,234.24,234.23,1e-08]
[1759816130186,12.55342189,234.23,234.22,1e-08]
[1759816130482,13.24342189,234.23,234.22,1e-08]
[1759816130682,12.55342189,234.23,234.22,1e-08]
[1759816131281,17.51272983,234.23,234.22,1e-08]
[1759816132287,15.14578315,234.23,234.22,1e-08]
[1759816132477,4.26930794,234.23,234.22,0.65000001]
[1759816132785,25.8179387,234.25,234.22,0.65000001]
[1759816133283,25.8179387,234.25,234.23,0.65]
[1759816135491,4.2691049,234.25,234.24,0.65]
[1759816136176,10.67106062,234.28,234.24,0.65]
[1759816136378,4.26865399,234.27,234.24,0.65]
[1759816136565,10.87647521,234.3,234.24,0.65]
[1759816139300,14.93773319,234.31,234.24,0.65]
[1759816141075,10.66988291,234.31,234.24,0.65]
[1759816141695,4.26766814,234.32,234.24,0.65]
[1759816142091,14.9368385,234.32,234.24,0.65]
[1759816142985,14.9368385,234.32,234.24,4.91904589]
[1759816143189,10.66917036,234.32,234.25,0.66]
[1759816143385,13.10303199,234.36,234.26,20.8]
[1759816143386,4.26706674,234.36,234.26,20.8]
[1759816143576,4.26706674,234.36,234.27,0.66]
[1759816144621,4.26672608,234.38,234.27,21.46]
[1759816144905,11.3347922,234.42,234.28,0.66]
[1759816145207,10.87647521,234.35,234.28,0.66]
[1759816145408,2.34694668,234.34,234.28,29.94]
[1759816145612,12.55342189,234.32,234.28,29.94]
[1759816145907,1.67694668,234.3,234.28,29.94]
[1759816146205,0.67,234.29,234.28,29.94]
[1759816146439,10.87647521,234.28,234.22,1e-08]
[1759816146705,1.67694668,234.27,234.25,30.0]
[1759816147001,0.67,234.26,234.25,30.0]
[1759816147414,4.9387612,234.26,234.25,30.0]
[1759816147799,15.61066421,234.26,234.22,1e-08]
[1759816147987,14.94066421,234.26,234.25,30.0]
[1759816148708,15.61066421,234.26,234.25,30.0]
[1759816152127,29.11025826,234.26,234.25,30.0]
[1759816153608,29.11025826,234.26,234.23,29.98]
[1759816153609,10.87647521,234.25,234.23,29.98]
[1759816153811,2.62311884,234.24,234.23,29.98]
[1759816154122,3.29311884,234.24,234.23,29.98]
[1759816154504,10.87647521,234.23,234.22,1e-08]
[1759816155008,11.54647521,234.23,234.22,1e-08]
[1759816155521,14.16959405,234.23,234.22,1e-08]
[1759816155699,18.43890199,234.23,234.22,1e-08]
[1759816156624,18.43890199,234.23,234.2,0.2]
[1759816156625,31.67647521,234.21,234.2,0.2]
[1759816156813,10.87647521,234.2,234.08,0.66]
[1759816157006,13.49959405,234.15,234.12,8.9]
[1759816157404,14.16959405,234.15,234.12,8.9]
[1759816157810,18.44036065,234.15,234.12,30.0]
[1759816158527,7.56388544,234.15,234.12,30.0]
[1759816159226,10.87647521,234.11,234.01,0.76]
[1759816159425,13.49959405,234.09,234.01,0.76]
[1759816159844,4.27204374,234.08,234.01,0.76]
[1759816160212,15.6221531,234.08,234.01,0.76]
[1759816160428,10.87647521,234.07,234.01,0.76]
[1759816161340,10.87647521,234.07,234.01,0.1]
[1759816161341,11.54647521,234.07,234.01,0.1]
[1759816161719,4.27240878,234.06,234.02,30.04]
[1759816162129,4.27240878,234.06,234.03,0.66]
[1759816162303,3.29311884,234.09,234.02,30.04]
[1759816162304,0.67,234.09,234.02,30.04]
[1759816162941,0.67,234.09,234.02,30.7]
[1759816164445,3.29311884,234.09,234.02,30.7]
[1759816164633,10.87647521,234.1,234.02,30.04]
[1759816164938,15.1481943,234.1,234.03,0.66]
[1759816165143,17.77131314,234.1,234.03,0.66]
[1759816165531,10.87647521,234.1,234.03,0.66]
[1759816165707,13.49959405,234.1,234.03,0.66]
[1759816165913,14.16959405,234.1,234.03,0.66]
[1759816166128,18.44129829,234.1,234.03,0.66]
[1759816166842,29.12049521,234.1,234.03,0.66]
[1759816167838,2.62311884,234.08,234.03,0.66]
[1759816168032,0.67,234.07,234.02,30.04]
[1759816168446,0.67,234.07,234.02,30.7]
[1759816168814,0.67,234.06,234.02,30.04]
[1759816169036,3.29311884,234.08,234.02,30.04]
[1759816169635,3.29311884,234.08,234.01,0.76]
[1759816169838,3.29311884,234.08,234.03,30.0]
[1759816170043,4.94222625,234.07,234.03,30.0]
[1759816170233,4.94222625,234.07,234.04,30.0]
[1759816170546,4.27222625,234.07,234.04,30.0]
[1759816170743,2.62311884,234.05,234.01,0.1]
[1759816170948,6.89571016,234.05,234.01,0.1]
[1759816171249,4.27259132,234.05,234.02,0.71]
[1759816171564,4.27259132,234.05,234.01,0.1]
[1759816171926,14.95406963,234.05,234.01,0.1]
[1759816172142,14.95406963,234.05,234.02,30.04]
[1759816172322,15.64406963,234.05,234.02,30.04]
[1759816172927,10.68147831,234.05,234.02,30.04]
[1759816173424,10.87647521,234.04,234.03,30.04]
[1759816174032,11.56647521,234.04,234.03,30.04]
[1759816174866,10.87647521,234.04,234.03,30.04]
[1759816175036,15.14924909,234.04,234.03,30.04]
[1759816175237,4.27277388,234.04,234.03,30.04]
[1759816176365,0.69,234.04,234.03,30.04]
[1759816176661,4.27259132,234.05,234.03,30.04]
[1759816176852,4.96259132,234.05,234.03,30.04]
[1759816177428,0.71,234.04,234.03,30.04]
[1759816178128,0.71,234.04,234.01,0.1]
[1759816178129,10.87647521,234.03,234.01,0.1]
[1759816178471,15.14943166,234.03,234.02,22.58]
[1759816178974,15.85943166,234.03,234.02,22.58]
[1759816179150,15.85943166,234.03,234.02,30.04]
[1759816180739,4.27295645,234.03,234.02,30.04]
[1759816182942,4.98295645,234.03,234.02,30.04]
[1759816183154,4.27295645,234.03,234.02,30.04]
[1759816183766,4.27277435,234.04,234.02,30.71]
[1759816184262,4.27277435,234.04,234.02,30.04]
[1759816184476,10.87647521,234.05,234.02,30.04]
[1759816185564,15.14917623,234.05,234.01,0.1]
[1759816185766,15.14917623,234.05,234.03,30.02]
[1759816185767,15.85917623,234.05,234.03,30.02]
[1759816187567,15.14917623,234.05,234.03,30.02]
[1759816187965,0.71,234.04,234.03,30.02]
[1759816188155,0.71,234.04,234.01,0.1]
[1759816188357,3.33311884,234.04,234.02,30.0]
[1759816188554,2.62311884,234.04,234.02,30.0]
[1759816188753,3.33311884,234.04,234.02,30.0]
[1759816188955,0.71,234.04,234.02,30.0]
[1759816190045,28.45377338,234.05,234.02,30.0]
[1759816190244,29.16377338,234.05,234.02,30.0]
[1759816191050,26.54065454,234.05,234.02,30.0]
[1759816193573,25.83065454,234.05,234.02,30.0]
[1759816193872,2.22914105,234.06,234.03,0.67]
[1759816194066,4.27235902,234.07,234.03,0.67]
[1759816194880,10.87647521,234.09,234.03,0.67]
[1759816196378,10.87647521,234.09,234.04,29.98]
[1759816196379,4.27204374,234.08,234.04,29.98]
[1759816196577,10.87647521,234.12,234.05,0.67]
[1759816198161,15.14793912,234.12,234.05,4.94255275]
[1759816198361,4.27146391,234.12,234.06,0.67]
[1759816199373,4.27146391,234.12,234.06,4.94239575]
[1759816199676,4.27146391,234.12,234.07,0.67]
[1759816199870,4.27146391,234.12,234.08,0.67]
[1759816200081,4.27146391,234.12,234.09,30.65]
[1759816200389,4.27146391,234.12,234.03,0.67]
[1759816200390,11.58647521,234.11,234.03,0.67]
[1759816200586,14.20959405,234.11,234.04,29.98]
[1759816200755,10.87647521,234.09,234.04,29.98]
[1759816200957,0.71,234.08,234.04,29.98]
[1759816201160,4.27240878,234.06,234.04,29.98]
[1759816201379,4.97240878,234.06,234.04,29.98]
[1759816201580,0.7,234.05,234.01,0.1]
[1759816201779,10.87647521,234.04,234.01,0.1]
[1759816201960,11.57647521,234.03,234.02,29.98]
[1759816202360,10.87647521,234.02,234.01,0.1]
[1759816202578,11.57647521,234.02,234.01,30.1]
[1759816202781,0.7,234.05,234.01,30.1]
[1759816202995,11.57647521,234.05,234.01,30.1]
[1759816203169,10.87647521,234.03,234.01,30.1]
[1759816203369,4.27313904,234.02,234.01,30.1]
[1759816204710,4.97313904,234.02,234.01,30.1]
[1759816205269,4.27313904,234.02,234.01,30.1]
[1759816205464,4.97313904,234.02,234.01,0.1]
[1759816205685,4.97313904,234.02,234.01,30.08]
[1759816207992,10.87647521,234.07,234.01,30.8]
[1759816209077,0.7,234.06,234.02,30.0]
[1759816210177,4.27259132,234.05,234.02,30.0]
[1759816211472,4.27240878,234.06,234.02,30.0]
[1759816212276,4.27240878,234.06,234.03,0.72]
[1759816212998,4.27240878,234.06,234.02,30.0]
[1759816213196,4.27240878,234.06,234.02,30.72]
[1759816213493,4.27240878,234.06,234.03,30.0]
[1759816213494,4.27277388,234.04,234.03,30.0]
[1759816214090,4.27277388,234.04,234.01,0.1]
[1759816214270,4.27277388,234.04,234.02,29.98]
[1759816215900,10.68166364,234.05,234.02,29.98]
[1759816216104,0.7,234.04,234.02,29.98]
[1759816216397,0.7,234.03,234.01,0.1]
[1759816216573,11.57647521,234.03,234.02,29.98]
[1759816218000,15.84943166,234.03,234.02,29.98]
[1759816218376,15.84943166,234.03,234.01,0.1]
[1759816218576,15.84943166,234.03,234.02,29.98]
[1759816219986,15.14943166,234.03,234.02,29.98]
[1759816220195,4.27270918,234.05,234.02,30.7]
[1759816220379,4.27270918,234.05,234.03,0.72]
[1759816220787,4.27270918,234.05,234.02,29.98]
[1759816221011,4.27270918,234.05,234.02,30.7]
[1759816222208,15.14870146,234.07,234.02,30.7]
[1759816222593,15.84870146,234.07,234.02,30.7]
[1759816222913,4.27222625,234.07,234.03,0.72]
[1759816223081,4.27222625,234.07,234.02,29.98]
[1759816223281,4.27222625,234.07,234.03,0.72]
[1759816223488,4.27222625,234.07,234.04,0.72]
[1759816224320,4.27204374,234.08,234.04,0.72]
[1759816224694,4.97204374,234.08,234.02,30.7]
[1759816226101,4.27204374,234.08,234.02,29.98]
[1759816226308,0.7,234.07,234.02,29.98]
[1759816226514,4.27240878,234.06,234.02,30.7]
[1759816227017,15.14808759,234.11,234.03,0.72]
[1759816227225,4.27113142,234.13,234.05,20.8]
[1759816227417,4.27113142,234.13,234.06,0.72]
[1759816227617,4.27113142,234.13,234.07,29.98]
[1759816229216,14.94895997,234.13,234.07,29.98]
[1759816229614,14.94895997,234.13,234.03,4.27284217]
[1759816229615,13.25810224,234.12,234.03,20.8]
[1759816229816,0.7,234.11,234.04,29.98]
[1759816230021,10.87647521,234.12,234.04,29.98]
[1759816230219,0.7,234.1,234.04,29.98]
[1759816231200,0.7,234.1,234.03,0.72]
[1759816231401,4.27186124,234.09,234.05,29.98]
[1759816231700,4.27186124,234.09,234.05,30.64]
[1759816232126,4.27186124,234.09,234.06,29.98]
[1759816232429,0.65,234.08,234.06,29.98]
[1759816232602,14.95151436,234.09,234.06,29.98]
[1759816233142,14.95151436,234.09,234.01,0.1]
[1759816233143,14.95151436,234.09,234.04,0.66]
[1759816233308,15.60151436,234.09,234.05,29.98]
[1759816234409,0.65,234.08,234.05,29.98]
[1759816234728,0.65,234.07,234.02,0.66]
[1759816234908,0.65,234.07,234.03,29.98]
[1759816235231,0.65,234.07,234.04,29.98]
[1759816235726,4.27240878,234.06,234.04,29.98]
[1759816236510,4.27240878,234.06,234.01,0.1]
[1759816236511,14.95343074,234.06,234.05,29.98]
[1759816237118,26.50990595,234.06,234.01,0.1]
[1759816237427,28.19153298,234.06,234.02,28.82]
[1759816237634,0.68,234.05,234.02,28.82]
[1759816237831,0.68,234.04,234.02,28.82]
[1759816238017,26.50990595,234.06,234.02,28.82]
[1759816238738,14.95343074,234.06,234.03,29.98]
[1759816238916,14.95343074,234.06,234.03,30.68]
[1759816239121,14.95343074,234.06,234.03,29.98]
[1759816239433,14.95343074,234.06,234.04,0.7]
[1759816239729,14.95343074,234.06,234.03,29.98]
[1759816239730,10.68102196,234.06,234.03,29.98]
[1759816239936,21.55749717,234.06,234.03,29.98]
[1759816240830,4.27222625,234.07,234.03,30.68]
[1759816241405,4.27222625,234.07,234.03,29.98]
[1759816241605,4.27222625,234.07,234.04,0.7]
[1759816241806,15.14797151,234.11,234.05,0.7]
[1759816242026,15.82797151,234.11,234.05,0.7]
[1759816243124,26.50671227,234.11,234.05,0.7]
[1759816244149,14.95023706,234.11,234.05,0.7]
[1759816244439,4.2714963,234.11,234.05,0.7]
[1759816246032,15.63023706,234.11,234.05,0.7]
[1759816246944,15.63023706,234.11,234.03,30.68]
[1759816247116,14.95023706,234.11,234.03,30.68]
[1759816247318,0.68,234.1,234.03,30.68]
[1759816247518,0.68,234.1,234.04,0.7]
[1759816247720,4.27167876,234.1,234.04,0.7]
[1759816248732,4.27167876,234.1,234.05,29.98]
[1759816248935,4.27167876,234.1,234.05,30.68]
[1759816249237,4.95167876,234.1,234.05,30.68]
[1759816250935,14.95023706,234.11,234.06,0.7]
[1759816251141,4.2714963,234.11,234.07,0.7]
[1759816251918,4.9514963,234.11,234.07,0.7]
[1759816252539,4.2714963,234.11,234.05,30.68]
[1759816252748,4.9514963,234.11,234.05,30.68]
[1759816253925,4.2714963,234.11,234.02,12.82188267]
[1759816254252,10.87647521,234.06,234.03,29.96]
[1759816254418,0.68,234.05,234.03,29.96]
[1759816254622,11.55647521,234.04,234.03,29.96]
[1759816254923,13.23810224,234.04,234.03,29.96]
[1759816256042,17.51087612,234.04,234.03,29.96]
[1759816256254,17.51087612,234.04,234.03,29.98]
[1759816256751,28.19281083,234.04,234.03,29.98]
[1759816257265,28.19281083,234.04,234.01,0.1]
[1759816257432,11.55647521,234.03,234.02,29.98]
[1759816257637,15.82943166,234.03,234.02,29.98]
[1759816257938,10.87647521,234.02,234.01,0.1]
[1759816258140,12.55810224,234.02,234.01,0.1]
[1759816258349,13.23810224,234.02,234.01,0.1]
[1759816259633,17.51124128,234.02,234.01,0.1]
[1759816260635,28.19408889,234.02,233.99,30.16]
[1759816260841,12.55810224,234.0,233.99,30.16]
[1759816261049,13.23810224,234.0,233.99,30.16]
[1759816261255,13.23810224,234.0,233.99,1e-08]
[1759816261841,17.51160651,234.0,233.99,1e-08]
[1759816264855,11.55647521,234.0,233.99,1e-08]
[1759816265056,13.23810224,234.0,233.99,1e-08]
[1759816269666,14.91972927,234.0,233.99,1e-08]
[1759816270473,11.55647521,234.0,233.99,1e-08]
[1759816270672,13.23810224,234.0,233.99,1e-08]